[Event "Titled Tuesday Blitz May 25 2021"]
[White "zmeeed67"]
[Black "Leitao, Rafael"]
[BlackFideId "2101246"]
[WhiteElo "2621"]
[BlackElo "2609"]
[Result "0-1"]
[Round "10"]
[TimeControl "180+1"]
[Date "2021.05.25"]
[WhiteClock "0:00:01"]
[BlackClock "0:00:22"]

1. d4 {[%clk 0:03:00]}  Nf6 {[%clk 0:02:57]} 2. c4 {[%clk 0:02:59]}  g6 {[%clk 0:02:57]} 3. Nc3 {[%clk 0:02:59]}  Bg7 {[%clk 0:02:57]} 4. e4 {[%clk 0:02:59]}  d6 {[%clk 0:02:57]} 5. Be2 {[%clk 0:02:59]}  O-O {[%clk 0:02:57]} 6. Bg5 {[%clk 0:02:58]}  Na6 {[%clk 0:02:53]} 7. Nf3 {[%clk 0:02:57]}  e5 {[%clk 0:02:42]} 8. O-O {[%clk 0:02:56]}  h6 {[%clk 0:02:37]} 9. Be3 {[%clk 0:02:41]}  Ng4 {[%clk 0:02:34]} 10. Bc1 {[%clk 0:02:41]}  Qe8 {[%clk 0:02:11]} 11. h3 {[%clk 0:02:30]}  Nf6 {[%clk 0:02:09]} 12. d5 {[%clk 0:02:05]}  Nc5 {[%clk 0:02:04]} 13. Qc2 {[%clk 0:02:06]}  a5 {[%clk 0:02:03]} 14. Be3 {[%clk 0:01:59]}  Bd7 {[%clk 0:01:59]} 15. b3 {[%clk 0:01:57]}  Nh5 {[%clk 0:01:57]} 16. Rfe1 {[%clk 0:01:50]}  f5 {[%clk 0:01:49]} 17. exf5 {[%clk 0:01:43]}  gxf5 {[%clk 0:01:43]} 18. Nh2 {[%clk 0:01:14]}  e4 {[%clk 0:01:32]} 19. Rad1 {[%clk 0:01:09]}  Qg6 {[%clk 0:01:19]} 20. Bf1 {[%clk 0:00:58]}  Rae8 {[%clk 0:01:12]} 21. Kh1 {[%clk 0:00:34]}  Be5 {[%clk 0:01:05]} 22. Bd4 {[%clk 0:00:16]}  Bxd4 {[%clk 0:01:01]} 23. Rxd4 {[%clk 0:00:17]}  Nf4 {[%clk 0:01:00]} 24. Qd2 {[%clk 0:00:12]}  Nfd3 {[%clk 0:00:54]} 25. Bxd3 {[%clk 0:00:10]}  Nxd3 {[%clk 0:00:54]} 26. Rg1 {[%clk 0:00:11]}  Qf6 {[%clk 0:00:43]} 27. Rxd3 {[%clk 0:00:09]}  exd3 {[%clk 0:00:42]} 28. Qxd3 {[%clk 0:00:10]}  Qe5 {[%clk 0:00:36]} 29. Nf3 {[%clk 0:00:10]}  Qf4 {[%clk 0:00:35]} 30. Rd1 {[%clk 0:00:06]}  Kh7 {[%clk 0:00:34]} 31. Kg1 {[%clk 0:00:03]}  Rg8 {[%clk 0:00:32]} 32. Kh1 {[%clk 0:00:03]}  Rg7 {[%clk 0:00:31]} 33. Ne2 {[%clk 0:00:01]}  Qe4 {[%clk 0:00:29]} 34. Qxe4 {[%clk 0:00:02]}  fxe4 {[%clk 0:00:29]} 35. Nfd4 {[%clk 0:00:02]}  Rf8 {[%clk 0:00:29]} 36. Kg1 {[%clk 0:00:01]}  Bxh3 {[%clk 0:00:28]} 37. Ng3 {[%clk 0:00:01]}  Bg4 {[%clk 0:00:27]} 38. Re1 {[%clk 0:00:01]}  Re8 {[%clk 0:00:27]} 39. Rxe4 {[%clk 0:00:01]}  Rxe4 {[%clk 0:00:26]} 40. Nxe4 {[%clk 0:00:02]}  Bh3 {[%clk 0:00:23]} 41. g3 {[%clk 0:00:01]}  Bd7 {[%clk 0:00:22]} 0-1


[Site "https://www.chess.com"]

[Event "Titled Tuesday Blitz May 25 2021"]
[White "AldokhinIvan"]
[Black "Prydun, Andriy"]
[BlackFideId "14145898"]
[WhiteElo "2517"]
[BlackElo "2033"]
[Result "1-0"]
[Round "11"]
[TimeControl "180+1"]
[Date "2021.05.25"]
[WhiteClock "0:01:04"]
[BlackClock "0:00:44"]

1. e4 {[%clk 0:02:55]}  d5 {[%clk 0:03:00]} 2. exd5 {[%clk 0:02:50]}  Qxd5 {[%clk 0:03:01]} 3. Nc3 {[%clk 0:02:50]}  Qd6 {[%clk 0:03:02]} 4. Bc4 {[%clk 0:02:47]}  Nf6 {[%clk 0:03:02]} 5. Nge2 {[%clk 0:02:47]}  Be6 {[%clk 0:03:01]} 6. Nb5 {[%clk 0:02:43]}  Qc6 {[%clk 0:03:00]} 7. Bxe6 {[%clk 0:02:40]}  fxe6 {[%clk 0:02:59]} 8. Ned4 {[%clk 0:02:35]}  Qb6 {[%clk 0:02:59]} 9. a4 {[%clk 0:02:25]}  a5 {[%clk 0:02:41]} 10. Qe2 {[%clk 0:02:09]}  Na6 {[%clk 0:02:36]} 11. Nxe6 {[%clk 0:02:08]}  Kf7 {[%clk 0:02:33]} 12. Ng5+ {[%clk 0:01:56]}  Ke8 {[%clk 0:02:16]} 13. O-O {[%clk 0:01:54]}  Rd8 {[%clk 0:01:54]} 14. d3 {[%clk 0:01:48]}  c6 {[%clk 0:01:48]} 15. Be3 {[%clk 0:01:46]}  c5 {[%clk 0:01:41]} 16. Bf4 {[%clk 0:01:42]}  Qc6 {[%clk 0:01:34]} 17. Rae1 {[%clk 0:01:37]}  Rd7 {[%clk 0:01:28]} 18. Nf3 {[%clk 0:01:31]}  Rd5 {[%clk 0:01:19]} 19. c4 {[%clk 0:01:29]}  Rf5 {[%clk 0:01:18]} 20. Ne5 {[%clk 0:01:28]}  Qe6 {[%clk 0:01:14]} 21. Bg3 {[%clk 0:01:27]}  Nh5 {[%clk 0:01:10]} 22. Qe4 {[%clk 0:01:24]}  Nxg3 {[%clk 0:01:05]} 23. hxg3 {[%clk 0:01:24]}  Qc8 {[%clk 0:00:55]} 24. Ng6 {[%clk 0:01:11]}  hxg6 {[%clk 0:00:45]} 25. Nd6+ {[%clk 0:01:10]}  Kd8 {[%clk 0:00:44]} 26. Nxc8 {[%clk 0:01:09]}  Rfh5 {[%clk 0:00:44]} 27. f4 {[%clk 0:01:04]} 1-0


[Site "https://www.chess.com"]

[Event "Titled Tuesday Blitz May 25 2021"]
[White "Aravindh, Chithambaram VR."]
[Black "Maksimenko, Viktor"]
[WhiteFideId "5072786"]
[BlackFideId "13710478"]
[WhiteElo "2600"]
[BlackElo "2269"]
[Result "1-0"]
[Round "11"]
[TimeControl "180+1"]
[Date "2021.05.25"]
[WhiteClock "0:00:43"]
[BlackClock "0:00:08"]

1. b3 {[%clk 0:03:00]}  e5 {[%clk 0:02:57]} 2. Bb2 {[%clk 0:03:00]}  Nc6 {[%clk 0:02:57]} 3. c4 {[%clk 0:02:59]}  Nf6 {[%clk 0:02:57]} 4. Nf3 {[%clk 0:02:59]}  e4 {[%clk 0:02:57]} 5. Nd4 {[%clk 0:02:59]}  Bc5 {[%clk 0:02:54]} 6. Nf5 {[%clk 0:02:59]}  d5 {[%clk 0:02:50]} 7. Nxg7+ {[%clk 0:02:58]}  Kf8 {[%clk 0:02:51]} 8. cxd5 {[%clk 0:02:59]}  Bd4 {[%clk 0:02:49]} 9. Nc3 {[%clk 0:02:58]}  Nb4 {[%clk 0:02:50]} 10. Nh5 {[%clk 0:02:57]}  Nbxd5 {[%clk 0:02:14]} 11. Nxf6 {[%clk 0:02:21]}  Bxf6 {[%clk 0:01:56]} 12. Qc2 {[%clk 0:02:17]}  Nxc3 {[%clk 0:01:19]} 13. Bxc3 {[%clk 0:02:18]}  Bf5 {[%clk 0:01:18]} 14. e3 {[%clk 0:02:09]}  Rg8 {[%clk 0:01:14]} 15. O-O-O {[%clk 0:02:08]}  a5 {[%clk 0:01:08]} 16. f3 {[%clk 0:02:05]}  Bxc3 {[%clk 0:01:00]} 17. Qxc3 {[%clk 0:02:02]}  Qe7 {[%clk 0:00:55]} 18. Bc4 {[%clk 0:01:49]}  a4 {[%clk 0:00:52]} 19. b4 {[%clk 0:01:48]}  b5 {[%clk 0:00:36]} 20. Bd5 {[%clk 0:01:45]}  Rd8 {[%clk 0:00:35]} 21. fxe4 {[%clk 0:01:37]}  Bxe4 {[%clk 0:00:25]} 22. Bxe4 {[%clk 0:01:38]}  Qxe4 {[%clk 0:00:26]} 23. Rhf1 {[%clk 0:01:38]}  Rd6 {[%clk 0:00:19]} 24. Rf4 {[%clk 0:01:33]}  Qxg2 {[%clk 0:00:16]} 25. Kb2 {[%clk 0:01:25]}  Rc6 {[%clk 0:00:10]} 26. Qd4 {[%clk 0:01:16]}  Rd6 {[%clk 0:00:10]} 27. Qc3 {[%clk 0:01:11]}  Rc6 {[%clk 0:00:09]} 28. Qe5 {[%clk 0:00:59]}  Qg6 {[%clk 0:00:09]} 29. Rdf1 {[%clk 0:00:43]}  Qh6 {[%clk 0:00:08]} 1-0


[Site "https://www.chess.com"]

[Event "Titled Tuesday Blitz May 25 2021"]
[White "Asis Gargatagli, Hipolito"]
[Black "Erdogdu, Mert"]
[WhiteFideId "2260735"]
[BlackFideId "6301495"]
[WhiteElo "2557"]
[BlackElo "2485"]
[Result "0-1"]
[Round "11"]
[TimeControl "180+1"]
[Date "2021.05.25"]
[WhiteClock "0:00:19"]
[BlackClock "0:00:11"]

1. e4 {[%clk 0:03:00]}  c5 {[%clk 0:03:00]} 2. Nf3 {[%clk 0:03:01]}  d6 {[%clk 0:03:00]} 3. Bb5+ {[%clk 0:02:59]}  Nc6 {[%clk 0:03:00]} 4. O-O {[%clk 0:02:58]}  Bd7 {[%clk 0:03:00]} 5. Re1 {[%clk 0:02:59]}  Nf6 {[%clk 0:03:00]} 6. h3 {[%clk 0:02:59]}  Ne5 {[%clk 0:02:56]} 7. Bf1 {[%clk 0:02:59]}  Bc6 {[%clk 0:02:46]} 8. Nxe5 {[%clk 0:02:58]}  dxe5 {[%clk 0:02:46]} 9. d3 {[%clk 0:02:58]}  e6 {[%clk 0:02:45]} 10. Nd2 {[%clk 0:02:58]}  Be7 {[%clk 0:02:37]} 11. Nc4 {[%clk 0:02:55]}  Qc7 {[%clk 0:02:36]} 12. a4 {[%clk 0:02:53]}  b6 {[%clk 0:02:35]} 13. Qf3 {[%clk 0:02:53]}  O-O {[%clk 0:02:34]} 14. Bd2 {[%clk 0:02:51]}  Nd7 {[%clk 0:02:23]} 15. Bc3 {[%clk 0:02:49]}  f6 {[%clk 0:01:49]} 16. Qg4 {[%clk 0:02:47]}  Kf7 {[%clk 0:01:49]} 17. h4 {[%clk 0:02:37]}  Rfd8 {[%clk 0:01:46]} 18. g3 {[%clk 0:02:36]}  a6 {[%clk 0:01:42]} 19. Bh3 {[%clk 0:02:35]}  Nf8 {[%clk 0:01:42]} 20. f4 {[%clk 0:02:28]}  exf4 {[%clk 0:01:39]} 21. gxf4 {[%clk 0:02:29]}  Bb7 {[%clk 0:01:37]} 22. Kh2 {[%clk 0:02:23]}  Qc6 {[%clk 0:01:30]} 23. Rg1 {[%clk 0:02:21]}  g6 {[%clk 0:01:30]} 24. Raf1 {[%clk 0:02:18]}  Rac8 {[%clk 0:01:16]} 25. h5 {[%clk 0:02:16]}  Ke8 {[%clk 0:01:14]} 26. Qe2 {[%clk 0:01:58]}  Ba8 {[%clk 0:01:11]} 27. b3 {[%clk 0:01:55]}  b5 {[%clk 0:01:11]} 28. axb5 {[%clk 0:01:56]}  axb5 {[%clk 0:01:10]} 29. Ne3 {[%clk 0:01:56]}  c4 {[%clk 0:01:05]} 30. bxc4 {[%clk 0:01:53]}  bxc4 {[%clk 0:01:05]} 31. Nxc4 {[%clk 0:01:53]}  Qb7 {[%clk 0:00:51]} 32. Rb1 {[%clk 0:01:52]}  Qa6 {[%clk 0:00:50]} 33. Ra1 {[%clk 0:01:49]}  Qc6 {[%clk 0:00:49]} 34. Rgb1 {[%clk 0:01:41]}  Rb8 {[%clk 0:00:47]} 35. Rxb8 {[%clk 0:01:38]}  Rxb8 {[%clk 0:00:48]} 36. Bg2 {[%clk 0:01:33]}  Qc7 {[%clk 0:00:43]} 37. e5 {[%clk 0:01:28]}  Bxg2 {[%clk 0:00:42]} 38. Qxg2 {[%clk 0:01:29]}  f5 {[%clk 0:00:41]} 39. Ra6 {[%clk 0:01:14]}  Kf7 {[%clk 0:00:39]} 40. h6 {[%clk 0:01:03]}  Rb1 {[%clk 0:00:37]} 41. Qc6 {[%clk 0:00:42]}  Qxc6 {[%clk 0:00:30]} 42. Rxc6 {[%clk 0:00:43]}  Rc1 {[%clk 0:00:31]} 43. Ne3 {[%clk 0:00:40]}  g5 {[%clk 0:00:31]} 44. Bd2 {[%clk 0:00:37]}  Ra1 {[%clk 0:00:31]} 45. Nc4 {[%clk 0:00:29]}  gxf4 {[%clk 0:00:28]} 46. Bxf4 {[%clk 0:00:29]}  Ng6 {[%clk 0:00:29]} 47. Bd2 {[%clk 0:00:26]}  Ra2 {[%clk 0:00:29]} 48. Nd6+ {[%clk 0:00:26]}  Kg8 {[%clk 0:00:21]} 49. Rc8+ {[%clk 0:00:25]}  Bf8 {[%clk 0:00:20]} 50. d4 {[%clk 0:00:25]}  Ra4 {[%clk 0:00:15]} 51. Be3 {[%clk 0:00:19]}  f4 {[%clk 0:00:14]} 52. Bf2 {[%clk 0:00:19]}  Ra2 {[%clk 0:00:14]} 53. Kg2 {[%clk 0:00:19]}  Ne7 {[%clk 0:00:14]} 54. Ne4 {[%clk 0:00:19]}  Nxc8 {[%clk 0:00:14]} 55. Nf6+ {[%clk 0:00:19]}  Kh8 {[%clk 0:00:14]} 56. c4 {[%clk 0:00:18]}  Bxh6 {[%clk 0:00:14]} 57. Kf3 {[%clk 0:00:18]}  Ra3+ {[%clk 0:00:13]} 58. Ke4 {[%clk 0:00:18]}  Nb6 {[%clk 0:00:14]} 59. c5 {[%clk 0:00:18]}  Nc4 {[%clk 0:00:13]} 60. d5 {[%clk 0:00:18]}  Nd2+ {[%clk 0:00:13]} 61. Kd4 {[%clk 0:00:19]}  Ra4+ {[%clk 0:00:13]} 62. Kc3 {[%clk 0:00:18]}  Ne4+ {[%clk 0:00:12]} 63. Nxe4 {[%clk 0:00:19]}  Rxe4 {[%clk 0:00:13]} 64. d6 {[%clk 0:00:20]}  Rxe5 {[%clk 0:00:13]} 65. Bd4 {[%clk 0:00:19]}  Bg7 {[%clk 0:00:12]} 66. d7 {[%clk 0:00:19]}  Rxc5+ {[%clk 0:00:11]} 0-1


[Site "https://www.chess.com"]

[Event "Titled Tuesday Blitz May 25 2021"]
[White "Blomqvist, Erik"]
[Black "Goryachkina, Aleksandra"]
[WhiteFideId "1709437"]
[BlackFideId "4147103"]
[WhiteElo "2460"]
[BlackElo "2441"]
[Result "0-1"]
[Round "11"]
[TimeControl "180+1"]
[Date "2021.05.25"]
[WhiteClock "0:00:01"]
[BlackClock "0:00:04"]

1. e4 {[%clk 0:03:00]}  c5 {[%clk 0:02:59]} 2. Nf3 {[%clk 0:03:00]}  e6 {[%clk 0:03:00]} 3. c3 {[%clk 0:02:59]}  d5 {[%clk 0:02:56]} 4. exd5 {[%clk 0:03:00]}  exd5 {[%clk 0:02:56]} 5. d4 {[%clk 0:03:00]}  Nf6 {[%clk 0:02:54]} 6. Bb5+ {[%clk 0:02:59]}  Bd7 {[%clk 0:02:53]} 7. Bxd7+ {[%clk 0:02:52]}  Nbxd7 {[%clk 0:02:53]} 8. O-O {[%clk 0:02:52]}  Be7 {[%clk 0:02:53]} 9. dxc5 {[%clk 0:02:51]}  Nxc5 {[%clk 0:02:52]} 10. Be3 {[%clk 0:02:50]}  O-O {[%clk 0:02:51]} 11. Nbd2 {[%clk 0:02:50]}  Re8 {[%clk 0:02:47]} 12. Nb3 {[%clk 0:02:49]}  Nce4 {[%clk 0:02:46]} 13. Qc2 {[%clk 0:02:47]}  Bd6 {[%clk 0:02:32]} 14. h3 {[%clk 0:02:42]}  a6 {[%clk 0:02:28]} 15. Rad1 {[%clk 0:02:41]}  Rc8 {[%clk 0:02:28]} 16. Rfe1 {[%clk 0:02:35]}  Bb8 {[%clk 0:02:27]} 17. Nbd4 {[%clk 0:02:33]}  Qc7 {[%clk 0:02:24]} 18. a4 {[%clk 0:02:23]}  Nd6 {[%clk 0:02:19]} 19. Bf4 {[%clk 0:02:15]}  Qb6 {[%clk 0:02:15]} 20. Bxd6 {[%clk 0:01:43]}  Bxd6 {[%clk 0:02:10]} 21. Qb3 {[%clk 0:01:16]}  Qc7 {[%clk 0:02:08]} 22. Nf5 {[%clk 0:01:13]}  Bc5 {[%clk 0:02:05]} 23. Qc2 {[%clk 0:01:12]}  g6 {[%clk 0:02:01]} 24. N5d4 {[%clk 0:01:12]}  Ne4 {[%clk 0:02:00]} 25. Re2 {[%clk 0:01:11]}  Qf4 {[%clk 0:01:54]} 26. Rde1 {[%clk 0:01:10]}  Re7 {[%clk 0:01:49]} 27. Qb3 {[%clk 0:01:08]}  Rd8 {[%clk 0:01:40]} 28. a5 {[%clk 0:01:03]}  h5 {[%clk 0:01:38]} 29. Qc2 {[%clk 0:00:56]}  g5 {[%clk 0:01:30]} 30. Qd3 {[%clk 0:00:54]}  g4 {[%clk 0:01:18]} 31. Nh4 {[%clk 0:00:36]}  Nxf2 {[%clk 0:01:11]} 32. Qf5 {[%clk 0:00:33]}  Qxf5 {[%clk 0:01:03]} 33. Nhxf5 {[%clk 0:00:32]}  Rxe2 {[%clk 0:01:03]} 34. Rxe2 {[%clk 0:00:30]}  Ne4 {[%clk 0:01:01]} 35. hxg4 {[%clk 0:00:31]}  hxg4 {[%clk 0:01:01]} 36. Nh6+ {[%clk 0:00:31]}  Kg7 {[%clk 0:00:58]} 37. Nxg4 {[%clk 0:00:32]}  Nd6 {[%clk 0:00:38]} 38. Kf1 {[%clk 0:00:28]}  Bxd4 {[%clk 0:00:33]} 39. cxd4 {[%clk 0:00:28]}  Kf8 {[%clk 0:00:27]} 40. Ne3 {[%clk 0:00:16]}  Nb5 {[%clk 0:00:26]} 41. Nf5 {[%clk 0:00:14]}  Rc8 {[%clk 0:00:22]} 42. g4 {[%clk 0:00:13]}  Rc1+ {[%clk 0:00:20]} 43. Kf2 {[%clk 0:00:12]}  Ra1 {[%clk 0:00:20]} 44. Rc2 {[%clk 0:00:11]}  Ke8 {[%clk 0:00:18]} 45. Rc8+ {[%clk 0:00:04]}  Kd7 {[%clk 0:00:19]} 46. Rf8 {[%clk 0:00:04]}  Rxa5 {[%clk 0:00:17]} 47. Rxf7+ {[%clk 0:00:04]}  Ke6 {[%clk 0:00:17]} 48. Rxb7 {[%clk 0:00:04]}  Ra2 {[%clk 0:00:17]} 49. Ke3 {[%clk 0:00:02]}  Rxb2 {[%clk 0:00:17]} 50. Rb6+ {[%clk 0:00:03]}  Kf7 {[%clk 0:00:16]} 51. Rxa6 {[%clk 0:00:04]}  Nc3 {[%clk 0:00:13]} 52. Kf4 {[%clk 0:00:03]}  Re2 {[%clk 0:00:12]} 53. Ra7+ {[%clk 0:00:03]}  Kf8 {[%clk 0:00:09]} 54. Kg5 {[%clk 0:00:03]}  Re6 {[%clk 0:00:08]} 55. Rd7 {[%clk 0:00:01]}  Ne4+ {[%clk 0:00:08]} 56. Kf4 {[%clk 0:00:02]}  Nf6 {[%clk 0:00:09]} 57. Rd6 {[%clk 0:00:01]}  Re4+ {[%clk 0:00:08]} 58. Kf3 {[%clk 0:00:01]}  Kf7 {[%clk 0:00:05]} 59. Re6 {[%clk 0:00:01]}  Rxe6 {[%clk 0:00:04]} 0-1


[Site "https://www.chess.com"]

[Event "Titled Tuesday Blitz May 25 2021"]
[White "Bodnaruk, Anastasia"]
[Black "Miszler, Levente"]
[WhiteFideId "4181751"]
[BlackFideId "763276"]
[WhiteElo "2393"]
[BlackElo "1967"]
[Result "0-1"]
[Round "11"]
[TimeControl "180+1"]
[Date "2021.05.25"]
[WhiteClock "0:00:06"]
[BlackClock "0:00:18"]

1. e4 {[%clk 0:03:00]}  e6 {[%clk 0:02:59]} 2. d4 {[%clk 0:02:59]}  d5 {[%clk 0:03:00]} 3. e5 {[%clk 0:02:59]}  c5 {[%clk 0:03:00]} 4. c3 {[%clk 0:02:59]}  Nc6 {[%clk 0:03:00]} 5. Nf3 {[%clk 0:03:00]}  Bd7 {[%clk 0:03:00]} 6. Be2 {[%clk 0:02:58]}  f6 {[%clk 0:03:00]} 7. O-O {[%clk 0:02:54]}  fxe5 {[%clk 0:02:59]} 8. Nxe5 {[%clk 0:02:51]}  Nxe5 {[%clk 0:02:58]} 9. dxe5 {[%clk 0:02:51]}  Qc7 {[%clk 0:02:58]} 10. Re1 {[%clk 0:02:49]}  O-O-O {[%clk 0:02:57]} 11. Bf1 {[%clk 0:02:34]}  Ne7 {[%clk 0:02:53]} 12. Na3 {[%clk 0:02:29]}  Nf5 {[%clk 0:02:46]} 13. Nc2 {[%clk 0:02:28]}  Rg8 {[%clk 0:02:45]} 14. b4 {[%clk 0:02:27]}  g5 {[%clk 0:02:44]} 15. a4 {[%clk 0:02:24]}  g4 {[%clk 0:02:42]} 16. Ba3 {[%clk 0:01:59]}  h5 {[%clk 0:02:39]} 17. Bd3 {[%clk 0:01:50]}  Nh4 {[%clk 0:02:13]} 18. bxc5 {[%clk 0:01:41]}  Bxc5 {[%clk 0:02:12]} 19. Nd4 {[%clk 0:01:40]}  Bxa3 {[%clk 0:01:48]} 20. Rxa3 {[%clk 0:01:39]}  Rdf8 {[%clk 0:01:48]} 21. Qb3 {[%clk 0:01:12]}  Bc6 {[%clk 0:01:39]} 22. Nxe6 {[%clk 0:00:59]}  Qf7 {[%clk 0:01:20]} 23. Nxf8 {[%clk 0:00:58]}  Nf3+ {[%clk 0:01:05]} 24. gxf3 {[%clk 0:00:26]}  gxf3+ {[%clk 0:01:06]} 25. Kh1 {[%clk 0:00:27]}  Qxf8 {[%clk 0:01:05]} 26. Bf1 {[%clk 0:00:18]}  Bd7 {[%clk 0:00:44]} 27. e6 {[%clk 0:00:17]}  Bxe6 {[%clk 0:00:30]} 28. Rxe6 {[%clk 0:00:14]}  Qg7 {[%clk 0:00:29]} 29. Re8+ {[%clk 0:00:12]}  Rxe8 {[%clk 0:00:29]} 30. Qxd5 {[%clk 0:00:12]}  Re1 {[%clk 0:00:27]} 31. Qc4+ {[%clk 0:00:09]}  Kb8 {[%clk 0:00:25]} 32. Qf4+ {[%clk 0:00:06]}  Ka8 {[%clk 0:00:19]} 33. Qc4 {[%clk 0:00:06]}  Qg2# {[%clk 0:00:18]} 0-1


[Site "https://www.chess.com"]

[Event "Titled Tuesday Blitz May 25 2021"]
[White "Cardoso Cardoso, Jose Gabriel"]
[Black "Bortnyk, Olexandr"]
[WhiteFideId "4430492"]
[BlackFideId "14120828"]
[WhiteElo "2343"]
[BlackElo "2723"]
[Result "0-1"]
[Round "11"]
[TimeControl "180+1"]
[Date "2021.05.25"]
[WhiteClock "0:00:02"]
[BlackClock "0:00:14"]

1. e4 {[%clk 0:03:00]}  Nf6 {[%clk 0:02:59]} 2. e5 {[%clk 0:03:00]}  Nd5 {[%clk 0:02:59]} 3. d4 {[%clk 0:03:01]}  d6 {[%clk 0:02:59]} 4. Nf3 {[%clk 0:03:01]}  dxe5 {[%clk 0:03:00]} 5. Nxe5 {[%clk 0:03:01]}  c6 {[%clk 0:03:00]} 6. Bc4 {[%clk 0:02:59]}  Nd7 {[%clk 0:03:00]} 7. Qe2 {[%clk 0:02:58]}  Nxe5 {[%clk 0:02:59]} 8. Qxe5 {[%clk 0:02:55]}  Be6 {[%clk 0:02:42]} 9. Bb3 {[%clk 0:02:51]}  Qd6 {[%clk 0:02:37]} 10. Qe2 {[%clk 0:02:15]}  g6 {[%clk 0:02:33]} 11. O-O {[%clk 0:02:05]}  Bg7 {[%clk 0:02:32]} 12. c3 {[%clk 0:02:05]}  O-O {[%clk 0:02:29]} 13. Nd2 {[%clk 0:02:02]}  a5 {[%clk 0:02:10]} 14. a4 {[%clk 0:01:50]}  Qc7 {[%clk 0:01:48]} 15. Qf3 {[%clk 0:01:44]}  Rad8 {[%clk 0:01:41]} 16. Re1 {[%clk 0:01:41]}  Rfe8 {[%clk 0:01:30]} 17. Ne4 {[%clk 0:01:34]}  Bf5 {[%clk 0:01:26]} 18. Ng3 {[%clk 0:01:26]}  Bc8 {[%clk 0:01:21]} 19. Ne4 {[%clk 0:01:02]}  h6 {[%clk 0:01:05]} 20. h4 {[%clk 0:00:35]}  Qb6 {[%clk 0:01:03]} 21. Ba2 {[%clk 0:00:33]}  e5 {[%clk 0:01:04]} 22. dxe5 {[%clk 0:00:28]}  Rxe5 {[%clk 0:01:05]} 23. Bxh6 {[%clk 0:00:20]}  Bxh6 {[%clk 0:00:45]} 24. Nf6+ {[%clk 0:00:19]}  Nxf6 {[%clk 0:00:26]} 25. Qxf6 {[%clk 0:00:20]}  Rf5 {[%clk 0:00:21]} 26. Bxf7+ {[%clk 0:00:06]}  Kf8 {[%clk 0:00:22]} 27. Qxg6 {[%clk 0:00:05]}  Qxf2+ {[%clk 0:00:20]} 28. Kh1 {[%clk 0:00:06]}  Qxh4+ {[%clk 0:00:20]} 29. Kg1 {[%clk 0:00:06]}  Rxf7 {[%clk 0:00:17]} 30. Re2 {[%clk 0:00:02]}  Bf5 {[%clk 0:00:14]} 0-1


[Site "https://www.chess.com"]

[Event "Titled Tuesday Blitz May 25 2021"]
[White "Csonka, Balazs"]
[Black "Remolar Gallen, Jose"]
[WhiteFideId "742910"]
[BlackFideId "2215187"]
[WhiteElo "2404"]
[BlackElo "2203"]
[Result "0-1"]
[Round "11"]
[TimeControl "180+1"]
[Date "2021.05.25"]
[WhiteClock "0:00:02"]
[BlackClock "0:00:06"]

1. e4 {[%clk 0:03:00]}  c5 {[%clk 0:02:55]} 2. Nf3 {[%clk 0:03:00]}  d6 {[%clk 0:02:56]} 3. d4 {[%clk 0:03:00]}  cxd4 {[%clk 0:02:56]} 4. Nxd4 {[%clk 0:03:01]}  Nf6 {[%clk 0:02:57]} 5. Nc3 {[%clk 0:03:01]}  a6 {[%clk 0:02:57]} 6. Qe2 {[%clk 0:03:01]}  e5 {[%clk 0:02:55]} 7. Nf5 {[%clk 0:03:00]}  d5 {[%clk 0:02:49]} 8. Bg5 {[%clk 0:02:57]}  d4 {[%clk 0:02:46]} 9. O-O-O {[%clk 0:02:50]}  Qa5 {[%clk 0:02:38]} 10. Bxf6 {[%clk 0:02:28]}  gxf6 {[%clk 0:02:35]} 11. Qc4 {[%clk 0:01:40]}  Be6 {[%clk 0:02:08]} 12. Nd5 {[%clk 0:01:36]}  Bxd5 {[%clk 0:01:57]} 13. exd5 {[%clk 0:01:34]}  Nd7 {[%clk 0:01:49]} 14. d6 {[%clk 0:00:50]}  Qc5 {[%clk 0:01:16]} 15. Qb3 {[%clk 0:00:44]}  Rc8 {[%clk 0:01:08]} 16. g4 {[%clk 0:00:29]}  h5 {[%clk 0:00:58]} 17. gxh5 {[%clk 0:00:23]}  Rxh5 {[%clk 0:00:55]} 18. Bd3 {[%clk 0:00:23]}  e4 {[%clk 0:00:39]} 19. Bxe4 {[%clk 0:00:21]}  Rxf5 {[%clk 0:00:38]} 20. Bxf5 {[%clk 0:00:17]}  Qxf5 {[%clk 0:00:38]} 21. Rhe1+ {[%clk 0:00:15]}  Kd8 {[%clk 0:00:36]} 22. Rxd4 {[%clk 0:00:15]}  Qxf2 {[%clk 0:00:27]} 23. Red1 {[%clk 0:00:08]}  Rc6 {[%clk 0:00:15]} 24. Kb1 {[%clk 0:00:07]}  Kc8 {[%clk 0:00:15]} 25. a3 {[%clk 0:00:06]}  Qxh2 {[%clk 0:00:14]} 26. c3 {[%clk 0:00:04]}  Bxd6 {[%clk 0:00:14]} 27. Qxf7 {[%clk 0:00:03]}  Qe5 {[%clk 0:00:09]} 28. Qg8+ {[%clk 0:00:03]}  Kc7 {[%clk 0:00:09]} 29. Rd5 {[%clk 0:00:04]}  Qe7 {[%clk 0:00:09]} 30. Qg2 {[%clk 0:00:03]}  Nb6 {[%clk 0:00:08]} 31. R5d3 {[%clk 0:00:02]}  Be5 {[%clk 0:00:09]} 32. Re3 {[%clk 0:00:02]}  Rd6 {[%clk 0:00:09]} 33. Red3 {[%clk 0:00:02]}  Rxd3 {[%clk 0:00:08]} 34. Rxd3 {[%clk 0:00:02]}  Qe6 {[%clk 0:00:08]} 35. Qe4 {[%clk 0:00:02]}  Qc6 {[%clk 0:00:08]} 36. Qe2 {[%clk 0:00:02]}  Kb8 {[%clk 0:00:08]} 37. Rh3 {[%clk 0:00:02]}  Ka7 {[%clk 0:00:08]} 38. Rh7 {[%clk 0:00:02]}  Qd5 {[%clk 0:00:06]} 39. Qh5 {[%clk 0:00:02]}  Qd3+ {[%clk 0:00:06]} 40. Ka2 {[%clk 0:00:02]}  Qc4+ {[%clk 0:00:05]} 41. Ka1 {[%clk 0:00:02]}  Qf1+ {[%clk 0:00:05]} 42. Ka2 {[%clk 0:00:02]}  Qc4+ {[%clk 0:00:04]} 43. Ka1 {[%clk 0:00:03]}  Na4 {[%clk 0:00:04]} 44. Qd1 {[%clk 0:00:02]}  Nc5 {[%clk 0:00:05]} 45. Rh1 {[%clk 0:00:02]}  Nb3+ {[%clk 0:00:05]} 46. Kb1 {[%clk 0:00:02]}  Qe4+ {[%clk 0:00:05]} 47. Ka2 {[%clk 0:00:03]}  Nc5 {[%clk 0:00:04]} 48. Re1 {[%clk 0:00:03]}  Qc4+ {[%clk 0:00:04]} 49. Kb1 {[%clk 0:00:04]}  Nd3 {[%clk 0:00:05]} 50. Re3 {[%clk 0:00:03]}  Nc5 {[%clk 0:00:05]} 51. Qc2 {[%clk 0:00:04]}  Bf4 {[%clk 0:00:05]} 52. Re1 {[%clk 0:00:04]}  Be5 {[%clk 0:00:05]} 53. Rd1 {[%clk 0:00:04]}  Bc7 {[%clk 0:00:06]} 54. Re1 {[%clk 0:00:04]}  Be5 {[%clk 0:00:06]} 55. Rd1 {[%clk 0:00:05]}  Nb3 {[%clk 0:00:06]} 56. Re1 {[%clk 0:00:04]}  a5 {[%clk 0:00:06]} 57. Rd1 {[%clk 0:00:04]}  a4 {[%clk 0:00:07]} 58. Re1 {[%clk 0:00:05]}  Nc5 {[%clk 0:00:07]} 59. Rd1 {[%clk 0:00:05]}  Ka6 {[%clk 0:00:07]} 60. Re1 {[%clk 0:00:05]}  Kb6 {[%clk 0:00:07]} 61. Rd1 {[%clk 0:00:05]}  Qb3 {[%clk 0:00:07]} 62. Qc1 {[%clk 0:00:03]}  Qc4 {[%clk 0:00:07]} 63. Qc2 {[%clk 0:00:03]}  Qe4 {[%clk 0:00:06]} 64. Qxe4 {[%clk 0:00:02]}  Nxe4 {[%clk 0:00:07]} 65. Kc2 {[%clk 0:00:03]}  Kc6 {[%clk 0:00:07]} 66. Rf1 {[%clk 0:00:03]}  Nc5 {[%clk 0:00:07]} 67. Rf2 {[%clk 0:00:02]}  b5 {[%clk 0:00:07]} 68. Rf1 {[%clk 0:00:02]}  Nb3 {[%clk 0:00:08]} 69. Rf3 {[%clk 0:00:02]}  Nc5 {[%clk 0:00:08]} 70. Rf1 {[%clk 0:00:02]}  Ne6 {[%clk 0:00:09]} 71. b3 {[%clk 0:00:02]}  axb3+ {[%clk 0:00:09]} 72. Kxb3 {[%clk 0:00:02]}  Nc5+ {[%clk 0:00:09]} 73. Kc2 {[%clk 0:00:03]}  Ne4 {[%clk 0:00:09]} 74. a4 {[%clk 0:00:01]}  bxa4 {[%clk 0:00:09]} 75. c4 {[%clk 0:00:01]}  Kc5 {[%clk 0:00:08]} 76. Kd3 {[%clk 0:00:01]}  Nd6 {[%clk 0:00:08]} 77. Rb1 {[%clk 0:00:01]}  a3 {[%clk 0:00:06]} 78. Rb8 {[%clk 0:00:02]}  a2 {[%clk 0:00:06]} 0-1


[Site "https://www.chess.com"]